fUSD/lending_fUSD_20240107
["ID","MTS","AMOUNT","RATE_DAILY","PERIOD"]
[310628144,1704592249325,-505.64560569,0.00022894,2]
[310628145,1704592249335,-500.0,0.00022894,2]
[310628146,1704592249345,-500.0,0.00022894,2]
[310628147,1704592249355,-504.97684827,0.00022894,2]
[310628148,1704592249365,-500.0,0.00022894,2]
[310628149,1704592249375,-488.42249352,0.00022894,2]
[310628150,1704592249386,-180.11538941,0.00022894,2]
[310628151,1704592249396,-500.0,0.00022894,2]
[310628152,1704592249406,-500.0,0.00022894,2]
[310628153,1704592249416,-500.0,0.00022894,2]
[310628154,1704592249426,-500.0,0.00022894,2]
[310628155,1704592249436,-500.0,0.00022894,2]
[310628156,1704592249445,-500.0,0.00022894,2]
[310628157,1704592249455,-500.0,0.00022894,2]
[310628158,1704592249465,-500.0,0.00022894,2]
[310628159,1704592249475,-500.0,0.00022894,2]
[310628160,1704592249484,-500.0,0.00022894,2]
[310628161,1704592249494,-500.0,0.00022894,2]
[310628162,1704592249504,-500.0,0.00022894,2]
[310628163,1704592249513,-500.0,0.00022894,2]
[310628164,1704592249523,-502.98651241,0.00022894,2]
[310628165,1704592249533,-500.0,0.00022894,2]
[310628166,1704592249542,-500.0,0.00022894,2]
[310628167,1704592249552,-500.0,0.00022894,2]
[310628168,1704592249562,-500.0,0.00022894,2]
[310628169,1704592249571,-500.0,0.00022894,2]
[310628170,1704592249581,-500.0,0.00022894,2]
[310628171,1704592249590,-500.0,0.00022894,2]
[310628172,1704592249600,-508.28302859,0.00022894,2]
[310628173,1704592249611,-500.0,0.00022894,2]
[310628174,1704592249621,-253.98015754,0.00022894,2]
[310628175,1704592249630,-4051.2725011,0.00022894,2]
[310628176,1704592249641,-166.70408375,0.00022894,2]
[310628177,1704592249650,-4051.27250101,0.00022895,2]
[310628178,1704592249660,-171.79057891,0.00022895,2]
[310628179,1704592249670,-248.38084645,0.00022895,2]
[310628180,1704592249680,-181.69051528,0.00022895,2]
[310628181,1704592249689,-265.31791063,0.00022895,2]
[310628182,1704592249699,-4051.27250101,0.00022895,2]
[310628183,1704592249709,-4051.27250101,0.00022896,2]
[310628184,1704592249719,-4051.27250101,0.00022896,2]
[310628185,1704592249729,-4051.27250101,0.00022897,2]
[310628186,1704592249739,-4051.27250101,0.00022897,2]
[310628187,1704592249751,-158.90199826,0.00022898,2]
[310628188,1704592249761,-248.38084643,0.00022898,2]
[310628189,1704592249770,-265.31791062,0.00022898,2]
[310628190,1704592249780,-4051.27250101,0.00022898,2]
[310628191,1704592249790,-170.27496992,0.00022898,2]
[310628192,1704592249800,-500.0,0.00022898,2]
[310628193,1704592249809,-500.0,0.00022898,2]
[310628194,1704592249819,-500.0,0.00022898,2]
[310628195,1704592249829,-4051.27250101,0.00022898,2]
[310628196,1704592249838,-4051.27250101,0.00022899,2]
[310628197,1704592249848,-500.0,0.00022899,2]
[310628198,1704592249858,-487.53286325,0.00022899,2]
[310628199,1704592249867,-500.0,0.00022899,2]
[310628200,1704592249877,-500.0,0.00022899,2]
[310628201,1704592249887,-500.0,0.00022899,2]
[310628202,1704592249899,-500.0,0.00022899,2]
[310628203,1704592249910,-1108.26,0.00022899,2]
[310628204,1704592249919,-5200.35,0.00022899,2]
[310628205,1704592249929,-618.43356866,0.00022899,2]
[310628206,1704592249939,-500.0,0.00022899,2]
[310628207,1704592249948,-1033.85,0.00022899,2]
[310628208,1704592249958,-564.01,0.00022899,2]
[310628209,1704592249968,-994.12,0.00022899,2]
[310628210,1704592249977,-500.0,0.00022899,2]
[310628211,1704592249987,-500.0,0.00022899,2]
[310628212,1704592249997,-500.0,0.00022899,2]
[310628213,1704592250008,-500.0,0.00022899,2]
[310628214,1704592250017,-500.0,0.00022899,2]
[310628215,1704592250027,-500.0,0.00022899,2]
[310628216,1704592250037,-1542.22,0.00022899,2]
[310628217,1704592250046,-500.0,0.00022899,2]
[310628218,1704592250056,-231.38207275,0.00022899,2]
[310628219,1704592250066,-500.0,0.00022899,2]
[310628220,1704592250076,-549.23000784,0.00022899,2]
[310628221,1704592250086,-500.0,0.00022899,2]
[310628222,1704592250095,-563.85739404,0.00022899,2]
[310628223,1704592250105,-500.0,0.00022899,2]
[310628224,1704592250115,-500.0,0.00022899,2]
[310628225,1704592250125,-227.08070566,0.00022899,2]
[310628226,1704592250135,-500.0,0.00022899,2]
[310628227,1704592250145,-184.64580302,0.00022899,2]
[310628228,1704592250154,-500.0,0.00022899,2]
[310628229,1704592250164,-500.0,0.00022899,2]
[310628230,1704592250174,-1325.79,0.00022899,2]
[310628231,1704592250184,-500.0,0.00022899,2]
[310628232,1704592250193,-500.0,0.00022899,2]
[310628233,1704592250203,-500.0,0.00022899,2]
[310628234,1704592250213,-500.0,0.00022899,2]
[310628235,1704592250222,-1524.68,0.00022899,2]
[310628236,1704592250233,-500.0,0.00022899,2]
[310628237,1704592250243,-1097.74,0.00022899,2]
[310628238,1704592250253,-724.2,0.00022899,2]
[310628239,1704592250263,-1394.04,0.00022899,2]
[310628240,1704592250273,-500.0,0.00022899,2]
[310628241,1704592250282,-500.0,0.00022899,2]
[310628242,1704592250291,-500.0,0.00022899,2]
[310628243,1704592250301,-4051.27250101,0.00022899,2]
[310628244,1704592250311,-3137.2641031,0.000229,2]
[310628245,1704592250321,-171.79057891,0.000229,2]
[310628246,1704592250331,-158.90199826,0.000229,2]
[310628247,1704592250342,-4051.27250101,0.000229,2]
[310628248,1704592250352,-193.69696348,0.000229,2]
[310628249,1704592250362,-248.38084643,0.000229,2]
[310628250,1704592250372,-265.31791062,0.000229,2]
[310628251,1704592250382,-242.08,0.00022965,2]
[310628252,1704592250391,-500.0,0.0002299,2]
[310628253,1704592250401,-500.0,0.0002299,2]
[310628254,1704592250411,-548.09661722,0.0002299,2]
[310628255,1704592250421,-500.0,0.0002299,2]
[310628256,1704592250431,-500.0,0.0002299,2]
[310628257,1704592250441,-500.0,0.0002299,2]
[310628258,1704592250451,-500.0,0.0002299,2]
[310628259,1704592250461,-500.0,0.0002299,2]
[310628260,1704592250471,-500.0,0.0002299,2]
[310628261,1704592250484,-500.0,0.0002299,2]
[310628262,1704592250493,-500.0,0.0002299,2]
[310628263,1704592250503,-240.52875406,0.0002299,2]
[310628264,1704592250731,-500.0,0.0002299,2]
[310628265,1704592250741,-500.0,0.0002299,2]
[310628266,1704592250752,-597.78078971,0.0002299,2]
[310628267,1704592250762,-510.1925826,0.0002299,2]
[310628268,1704592250771,-500.0,0.0002299,2]
[310628269,1704592250780,-500.0,0.0002299,2]
[310628270,1704592250790,-500.0,0.0002299,2]
[310628271,1704592250799,-500.0,0.0002299,2]
[310628272,1704592250809,-423.64908171,0.0002299,2]
[310628273,1704592250819,-500.0,0.0002299,2]
[310628274,1704592250828,-500.0,0.0002299,2]
[310628275,1704592250838,-500.0,0.0002299,2]
[310628276,1704592250847,-500.0,0.0002299,2]
[310628277,1704592250857,-500.0,0.0002299,2]
[310628278,1704592250866,-500.0,0.0002299,2]
[310628279,1704592250876,-500.0,0.0002299,2]
[310628280,1704592250885,-500.0,0.0002299,2]
[310628281,1704592250894,-500.0,0.0002299,2]
[310628282,1704592250903,-500.0,0.0002299,2]
[310628283,1704592250912,-500.0,0.0002299,2]
[310628284,1704592250921,-500.0,0.0002299,2]
[310628285,1704592250931,-500.0,0.0002299,2]
[310628286,1704592250940,-500.0,0.0002299,2]
[310628287,1704592250950,-500.0,0.0002299,2]
[310628288,1704592250959,-500.0,0.0002299,2]
[310628289,1704592250968,-500.0,0.0002299,2]
[310628290,1704592250977,-500.0,0.0002299,2]
[310628291,1704592250986,-500.0,0.0002299,2]
[310628292,1704592250995,-500.0,0.0002299,2]
[310628293,1704592251005,-500.0,0.0002299,2]
[310628294,1704592251014,-500.0,0.0002299,2]
[310628295,1704592251023,-500.0,0.0002299,2]
[310628296,1704592251032,-448.0,0.0002299,2]
[310628297,1704592251042,-500.0,0.0002299,2]
[310628298,1704592251051,-500.0,0.0002299,2]
[310628299,1704592251061,-500.0,0.0002299,2]
[310628300,1704592251070,-506.06510376,0.0002299,2]
[310628301,1704592251079,-500.0,0.0002299,2]
[310628302,1704592251089,-500.0,0.0002299,2]
[310628303,1704592251098,-500.0,0.0002299,2]
[310628304,1704592251108,-500.0,0.0002299,2]
[310628305,1704592251117,-500.0,0.0002299,2]
[310628306,1704592251127,-500.0,0.0002299,2]
[310628307,1704592251136,-500.0,0.0002299,2]
[310628308,1704592251146,-470.09640086,0.0002299,2]
[310628309,1704592251155,-500.0,0.0002299,2]
[310628310,1704592251166,-514.21,0.0002299,2]
[310628311,1704592251176,-500.0,0.0002299,2]
[310628312,1704592251185,-500.0,0.0002299,2]
[310628313,1704592251194,-500.0,0.0002299,2]
[310628314,1704592251203,-500.0,0.0002299,2]
[310628315,1704592251213,-500.0,0.0002299,2]
[310628316,1704592251222,-1315.06,0.0002299,2]
[310628317,1704592251231,-500.0,0.0002299,2]
[310628318,1704592251241,-500.0,0.0002299,2]
[310628319,1704592251250,-500.0,0.0002299,2]
[310628320,1704592251261,-598.32,0.0002299,2]
[310628321,1704592251269,-500.0,0.0002299,2]
[310628322,1704592251278,-500.0,0.0002299,2]
[310628323,1704592251286,-500.0,0.0002299,2]
[310628324,1704592251294,-500.0,0.0002299,2]
[310628325,1704592251304,-500.0,0.0002299,2]
[310628326,1704592251313,-500.0,0.0002299,2]
[310628327,1704592251322,-720.04,0.0002299,2]
[310628328,1704592251332,-3603.35,0.0002299,2]
[310628329,1704592251341,-500.0,0.0002299,2]
[310628330,1704592251351,-809.16,0.0002299,2]
[310628331,1704592251360,-500.0,0.0002299,2]
[310628332,1704592251370,-500.0,0.0002299,2]
[310628333,1704592251379,-500.0,0.0002299,2]
[310628334,1704592251389,-500.0,0.0002299,2]
[310628335,1704592251398,-500.0,0.0002299,2]
[310628336,1704592251408,-1376.06,0.0002299,2]
[310628337,1704592251417,-500.0,0.0002299,2]
[310628338,1704592251427,-500.0,0.0002299,2]
[310628339,1704592251437,-500.0,0.0002299,2]
[310628340,1704592251446,-500.0,0.0002299,2]
[310628341,1704592251456,-311.91893771,0.0002299,2]
[310628342,1704592251465,-500.0,0.0002299,2]
[310628343,1704592251475,-500.0,0.0002299,2]
[310628344,1704592251484,-500.0,0.0002299,2]
[310628345,1704592251495,-500.0,0.0002299,2]
[310628346,1704592251505,-500.0,0.0002299,2]
[310628347,1704592251515,-500.0,0.0002299,2]
[310628348,1704592251524,-500.0,0.00022992,2]
[310628349,1704592251534,-500.0,0.00022992,2]
[310628350,1704592251544,-758.41,0.00022992,2]
[310628351,1704592251554,-500.0,0.00022992,2]
[310628352,1704592251564,-500.0,0.00022992,2]
[310628353,1704592251573,-500.0,0.00022992,2]
[310628354,1704592251583,-500.0,0.00022992,2]
[310628355,1704592251592,-500.0,0.00022992,2]
[310628356,1704592251602,-488.34174667,0.00022992,2]
[310628357,1704592251612,-500.0,0.00022992,2]
[310628358,1704592251622,-500.0,0.00022992,2]
[310628359,1704592251632,-568.37,0.00022992,2]
[310628360,1704592251641,-500.0,0.00022992,2]
[310628361,1704592251651,-500.0,0.00022992,2]
[310628362,1704592251661,-500.0,0.00022992,2]
[310628363,1704592251670,-205.32288806,0.00022992,2]
[310628364,1704592251680,-481.85248893,0.00022992,2]
[310628365,1704592251690,-242.48029206,0.00022992,2]
[310628366,1704592251700,-500.0,0.00022992,2]
[310628367,1704592251711,-500.0,0.00022992,2]
[310628368,1704592251721,-464.09585345,0.00022992,2]
[310628369,1704592251731,-500.0,0.00022992,2]
[310628370,1704592251743,-500.0,0.00022992,2]
[310628371,1704592251752,-500.0,0.00022992,2]
[310628372,1704592251762,-500.0,0.00022992,2]
[310628373,1704592251771,-500.0,0.00022992,2]
[310628374,1704592251782,-500.0,0.00022992,2]
[310628375,1704592251792,-500.0,0.00022992,2]
[310628376,1704592251801,-500.0,0.00022992,2]
[310628377,1704592251810,-500.0,0.00022992,2]
[310628378,1704592251819,-652.87,0.00022992,2]
[310628379,1704592251829,-500.0,0.00022992,2]
[310628380,1704592251838,-500.0,0.00022992,2]
[310628381,1704592251848,-500.0,0.00022992,2]
[310628382,1704592251858,-500.0,0.00022992,2]
[310628383,1704592251867,-500.0,0.00022992,2]
[310628384,1704592251877,-500.0,0.00022992,2]
[310628385,1704592251886,-477.40119586,0.00022992,2]
[310628386,1704592251894,-500.0,0.00022992,2]
[310628387,1704592251903,-500.0,0.00022992,2]
[310628388,1704592251913,-500.0,0.00022992,2]
[310628389,1704592251922,-500.0,0.00022992,2]
[310628390,1704592251931,-500.0,0.00022992,2]
[310628391,1704592251940,-500.0,0.00022992,2]
[310628392,1704592251949,-393.36376542,0.00022992,2]
[310628393,1704592251959,-500.0,0.00022992,2]
[310628394,1704592251967,-500.0,0.00022992,2]
[310628395,1704592251976,-500.0,0.00022992,2]
[310628396,1704592251985,-612.23,0.00022992,2]
[310628397,1704592251994,-312.78275121,0.00022992,2]
[310628398,1704592252004,-500.0,0.00022992,2]
[310628399,1704592252013,-500.0,0.00022992,2]
[310628400,1704592252024,-500.0,0.00022992,2]
[310628401,1704592252033,-500.0,0.00022992,2]
[310628402,1704592252042,-500.0,0.00022992,2]
[310628403,1704592252051,-500.0,0.00022992,2]
[310628404,1704592252062,-500.0,0.00022992,2]
[310628405,1704592252072,-249.8188978,0.00022992,2]
[310628406,1704592252082,-500.0,0.00022992,2]
[310628407,1704592252092,-500.0,0.00022992,2]
[310628408,1704592252101,-500.0,0.00022992,2]
[310628409,1704592252113,-500.0,0.00022992,2]
[310628410,1704592252123,-500.0,0.00022992,2]
[310628411,1704592252133,-500.0,0.00022992,2]
[310628412,1704592252142,-500.0,0.00022992,2]
[310628413,1704592252153,-500.0,0.00022992,2]
[310628414,1704592252163,-500.0,0.00022992,2]
[310628415,1704592252175,-500.0,0.00022992,2]
[310628416,1704592252185,-500.0,0.00022992,2]
[310628417,1704592252195,-500.0,0.00022992,2]
[310628418,1704592252206,-500.0,0.00022992,2]
[310628419,1704592252216,-500.0,0.00022992,2]
[310628420,1704592252226,-185.80810779,0.00022992,2]
[310628421,1704592252235,-500.0,0.00022992,2]
[310628422,1704592252245,-500.0,0.00022993,2]
[310628423,1704592252255,-500.0,0.00022993,2]
[310628424,1704592252265,-500.0,0.00022993,2]
[310628425,1704592252275,-500.0,0.00022993,2]
[310628426,1704592252285,-642.8,0.00022993,2]
[310628427,1704592252297,-500.0,0.00022993,2]
[310628428,1704592252309,-569.74,0.00022993,2]
[310628429,1704592252319,-617.87,0.00022993,2]
[310628430,1704592252329,-500.0,0.00022993,2]
[310628431,1704592252339,-2819.5,0.00022993,2]
[310628432,1704592252348,-500.0,0.00022993,2]
[310628433,1704592252357,-2171.75042918,0.00022993,2]
[310628434,1704592252680,-3247.249995,0.00022993,2]
[310628435,1704592252693,-405.81528365,0.00022993,2]
[310628436,1704592290485,161.32,0.00022234,2]
[310628437,1704592313101,3088.21142491,0.00015,10]
[310628438,1704592339868,756.0,0.0003,120]
[310628439,1704592354729,235.51537092,0.00021918,2]
[310628440,1704592367286,159.34,0.00021849,2]
[310628441,1704592367385,159.34,0.00022017,2]
[310628442,1704592367595,159.34,0.00022185,2]
[310628443,1704592367815,159.34,0.00022353,2]
[310628444,1704592385640,286.72,0.00020024,2]
[310628445,1704592385873,286.72,0.00022288,2]
[310628446,1704592412997,1000.0,0.00021914,2]
[310628447,1704592443453,151.0,0.00027803,120]
[310628448,1704592447773,1520.19480067,0.0002,2]
[310628449,1704592507798,190.36735302,0.00022418,2]
[310628450,1704592572592,159.83,0.00022074,2]
[310628451,1704592624528,551.83,0.00021881,2]
[310628452,1704592674736,151.0,0.00027904,120]
[310628453,1704592684035,204.0,0.00021615,2]
[310628454,1704592763187,157.18,0.00022098,2]
[310628455,1704592815318,258.04,0.00019927,2]
[310628456,1704592815563,258.04,0.00022191,2]
[310628457,1704592850172,172.15,0.00021814,2]
[310628458,1704592927964,165.43,0.00021784,2]
[310628459,1704592949586,200.0,0.00021775,2]
[310628460,1704592998711,159.07,0.00021954,2]
[310628461,1704593101162,515.04,0.00021735,2]
[310628462,1704593103339,151.0,0.00028027,120]
[310628463,1704593106439,151.3,0.00021741,2]
[310628464,1704593106676,151.3,0.00021885,2]
[310628465,1704593106903,151.3,0.0002203,2]
[310628466,1704593107094,151.3,0.00022175,2]
[310628467,1704593107505,151.3,0.0002232,2]
[310628468,1704593107718,151.3,0.00022465,2]
[310628472,1704593244687,12000.0,0.000225,2]
[310628476,1704593366348,232.23,0.00019781,2]
[310628477,1704593366561,232.23,0.00022045,2]
[310628478,1704593378183,193.89303235,0.00022421,2]
[310628482,1704593392243,12296.3336908,0.000225,2]
[310628483,1704593396089,2000.0,1.15e-06,120]
[310628484,1704593400997,840.0,0.00021697,2]
[310628485,1704593404183,204.0,0.00022173,2]
[310628488,1704593410951,2000.0,1.15e-06,120]
[310628489,1704593423504,159.07,0.00021865,2]
[310628490,1704593425188,2000.0,1.15e-06,120]
[310628499,1704593431423,-158.05558636,0.00022516,2]
[310628501,1704593431432,-1139.35160179,0.00022517,2]
[310628503,1704593431481,-1001.47011171,0.00022517,2]
[310628504,1704593431490,-696.21438607,0.00022518,2]
[310628505,1704593431499,-159.34,0.00022521,2]
[310628506,1704593431508,-193.89303235,0.00022557,2]
[310628507,1704593431520,-559.82866749,0.00022577,2]
[310628508,1704593431529,-1086.0379,0.00022592,2]
[310628509,1704593431538,-343.2948,0.00022593,2]
[310628511,1704593431548,-1000.0,0.00022593,2]
[310628512,1704593431557,-300.44,0.00022593,2]
[310628513,1704593431566,-499.99,0.00022594,2]
[310628514,1704593431575,-1277.39115352,0.00022594,2]
[310628515,1704593431593,-264.55,0.00022594,2]
[310628516,1704593431605,-333.231228,0.00022594,2]
[310628517,1704593431617,-3219.17761848,0.00022594,2]
[310628518,1704593431626,-472.4261,0.00022594,2]
[310628519,1704593431636,-269.0,0.00022599,2]
[310628520,1704593431645,-150.0,0.00022599,2]
[310628521,1704593431654,-150.0,0.00022599,2]
[310628522,1704593431664,-129.39628152,0.000226,2]
[310628523,1704593431675,-3983.15854197,0.000226,2]
[310628524,1704593431687,-4328.56008,0.000226,2]
[310628525,1704593431774,-11058.861998,0.000226,2]
[310628526,1704593431786,-945.20091881,0.000226,2]
[310628527,1704593431798,-965.38441706,0.000226,2]
[310628528,1704593431809,-7230.46094347,0.000226,2]
[310628529,1704593431820,-1326.35296055,0.000226,2]
[310628530,1704593431832,-857.59365821,0.000226,2]
[310628531,1704593431865,-642.205992,0.000226,2]
[310628532,1704593431988,-330.623482,0.000226,2]
[310628533,1704593432016,-2692.06977532,0.000226,2]
[310628534,1704593432028,-2789.53472835,0.000226,2]
[310628535,1704593432040,-967.69946374,0.000226,2]
[310628536,1704593432054,-1125.11685484,0.000226,2]
[310628537,1704593432071,-255.00000001,0.000226,2]
[310628538,1704593432082,-3225.18862013,0.000226,2]
[310628539,1704593432094,-2311.51,0.000226,2]
[310628540,1704593432106,-2036.64128402,0.000226,2]
[310628541,1704593432115,-151.3,0.0002261,2]
[310628542,1704593432125,-159.34,0.00022689,2]
[310628543,1704593432134,-570.42904073,0.0002269,2]
[310628551,1704593437534,-315.15124718,0.00022592,2]
[310628552,1704593437545,-18.58168225,0.0002269,2]
[310628553,1704593437556,-848.26710872,0.0002269,2]
[310628554,1704593437567,-661.13026243,0.0002269,2]
[310628555,1704593437644,-795.69174239,0.0002269,2]
[310628556,1704593437701,-18.37939568,0.0002269,2]
[310628557,1704593437711,-1012.04499512,0.00022691,2]
[310628558,1704593437720,-3583.66829808,0.00022691,2]
[310628559,1704593437730,-500.0,0.00022691,2]
[310628560,1704593437738,-500.0,0.00022691,2]
[310628561,1704593437747,-500.0,0.00022691,2]
[310628562,1704593437756,-967.16,0.00022691,2]
[310628563,1704593437765,-500.0,0.00022691,2]
[310628564,1704593437776,-500.0,0.00022691,2]
[310628565,1704593437785,-500.0,0.00022691,2]
[310628566,1704593437794,-500.0,0.00022691,2]
[310628567,1704593437803,-500.0,0.00022691,2]
[310628568,1704593437812,-500.0,0.00022691,2]
[310628569,1704593437821,-500.0,0.00022691,2]
[310628570,1704593437830,-500.0,0.00022691,2]
[310628571,1704593437839,-500.0,0.00022691,2]
[310628572,1704593437848,-500.0,0.00022691,2]
[310628573,1704593437857,-500.0,0.00022691,2]
[310628574,1704593437867,-500.0,0.00022691,2]
[310628575,1704593437876,-500.0,0.00022691,2]
[310628576,1704593437885,-500.0,0.00022691,2]
[310628577,1704593437894,-500.0,0.00022691,2]
[310628578,1704593437903,-500.0,0.00022691,2]
[310628579,1704593437912,-500.0,0.00022691,2]
[310628580,1704593437922,-639.81196415,0.00022691,2]
[310628581,1704593437932,-500.0,0.00022691,2]
[310628582,1704593437941,-586.43141095,0.00022691,2]
[310628583,1704593437950,-500.0,0.00022691,2]
[310628584,1704593437959,-500.0,0.00022691,2]
[310628585,1704593437969,-500.0,0.00022691,2]
[310628586,1704593437979,-1169.48,0.00022691,2]
[310628587,1704593437988,-500.0,0.00022691,2]
[310628588,1704593437998,-500.0,0.00022691,2]
[310628589,1704593438008,-946.82,0.00022691,2]
[310628590,1704593438020,-500.0,0.00022691,2]
[310628591,1704593438030,-618.74,0.00022691,2]
[310628593,1704593438039,-20615.8,0.00022691,2]
[310628594,1704593438051,-4008.9,0.00022691,2]
[310628595,1704593438060,-211.13535126,0.00022691,2]
[310628596,1704593438070,-500.0,0.00022691,2]
[310628597,1704593438081,-534.07930516,0.00022691,2]
[310628598,1704593438092,-30213.83,0.00022691,2]
[310628599,1704593438103,-500.0,0.00022691,2]
[310628600,1704593438114,-500.0,0.00022691,2]
[310628601,1704593438124,-920.27,0.00022691,2]
[310628602,1704593438135,-500.0,0.00022691,2]
[310628603,1704593438144,-509.18,0.00022691,2]
[310628604,1704593438154,-500.0,0.00022691,2]
[310628605,1704593438163,-540.46765707,0.00022691,2]
[310628606,1704593438171,-500.0,0.00022691,2]
[310628607,1704593438180,-500.0,0.00022691,2]
[310628608,1704593438189,-500.0,0.00022691,2]
[310628610,1704593438198,-500.0,0.00022691,2]
[310628612,1704593438207,-500.0,0.00022691,2]
[310628614,1704593438218,-500.0,0.00022691,2]
[310628616,1704593438227,-500.0,0.00022691,2]
[310628618,1704593438237,-128970.79256008,0.00022692,2]
[310628620,1704593438246,-500.0,0.00022692,2]
[310628622,1704593438255,-565.92699834,0.00022692,2]
[310628624,1704593438264,-500.0,0.00022692,2]
[310628647,1704593438466,-500.0,0.00022692,2]
[310628649,1704593438478,-500.0,0.00022692,2]
[310628651,1704593438487,-481.53813836,0.00022692,2]
[310628653,1704593438497,-541.22305653,0.00022692,2]
[310628655,1704593438506,-500.0,0.00022692,2]
[310628657,1704593438515,-500.0,0.00022692,2]
[310628659,1704593438526,-296.93285928,0.00022692,2]
[310628661,1704593438535,-519.84,0.00022692,2]
[310628663,1704593438544,-2208.02,0.00022692,2]
[310628665,1704593438554,-500.0,0.00022692,2]
[310628667,1704593438563,-450.68971133,0.00022692,2]
[310628669,1704593438572,-386.9912287,0.00022692,2]
[310628671,1704593438581,-500.0,0.00022692,2]
[310628673,1704593438591,-500.0,0.00022692,2]
[310628675,1704593438600,-500.0,0.00022692,2]
[310628677,1704593438609,-500.0,0.00022692,2]
[310628679,1704593438619,-349.0,0.00022692,2]
[310628681,1704593438628,-500.0,0.00022692,2]
[310628683,1704593438637,-500.0,0.00022692,2]
[310628685,1704593438646,-544.85,0.00022692,2]
[310628687,1704593438656,-500.0,0.00022692,2]
[310628689,1704593438665,-500.0,0.00022692,2]
[310628691,1704593438675,-500.0,0.00022692,2]
[310628693,1704593438685,-1703.55,0.00022692,2]
[310628696,1704593438694,-500.0,0.00022692,2]
[310628697,1704593438705,-607.09,0.00022692,2]
[310628700,1704593438714,-500.0,0.00022692,2]
[310628702,1704593438724,-967.16,0.00022692,2]
[310628704,1704593438733,-1181.18,0.00022692,2]
[310628706,1704593438742,-500.0,0.00022692,2]
[310628707,1704593438750,-500.0,0.00022692,2]
[310628709,1704593438759,-500.0,0.00022692,2]
[310628712,1704593438769,-500.0,0.00022692,2]
[310628713,1704593438778,-6385.87,0.00022692,2]
[310628714,1704593438790,-500.0,0.00022692,2]
[310628715,1704593438799,-500.0,0.00022692,2]
[310628716,1704593438809,-500.0,0.00022692,2]
[310628717,1704593438818,-500.0,0.00022692,2]
[310628718,1704593438828,-500.0,0.00022692,2]
[310628719,1704593438837,-500.0,0.00022692,2]
[310628720,1704593438846,-500.0,0.00022692,2]
[310628721,1704593438855,-500.0,0.00022692,2]
[310628722,1704593438864,-2126.67,0.00022692,2]
[310628723,1704593438873,-500.0,0.00022692,2]
[310628724,1704593438882,-500.0,0.00022692,2]
[310628725,1704593438893,-500.0,0.00022692,2]
[310628726,1704593438903,-500.0,0.00022692,2]
[310628727,1704593438912,-500.0,0.00022692,2]
[310628728,1704593438921,-500.0,0.00022692,2]
[310628729,1704593438930,-500.0,0.00022692,2]
[310628730,1704593438939,-500.0,0.00022692,2]
[310628731,1704593438949,-761.98,0.00022692,2]
[310628732,1704593438960,-218.27606878,0.00022692,2]
[310628733,1704593438971,-500.0,0.00022692,2]
[310628734,1704593438982,-500.0,0.00022692,2]
[310628735,1704593438991,-500.0,0.00022692,2]
[310628736,1704593439001,-500.0,0.00022692,2]